[Event "Reykjavik Open 2024"]
[Site "Reykjavik"]
[Date "2024.03.16"]
[Round "2.1"]
[White "Deac, Bogdan-Daniel"]
[Black "Domalchuk-Jonasson, Aleksandr"]
[Result "1/2-1/2"]
[ECO "D35"]
[WhiteElo "2690"]
[BlackElo "2355"]
[Annotator "TA"]
[PlyCount "102"]
[EventDate "2024.03.12"]
[EventCountry "ISL"]
[SourceTitle "playchess.com"]
[Source "ChessBase"]
[SourceQuality "1"]
[TimeControl "40/5400+30:1800+30"]

{[%evp 9,102,0,6,7,10,6,7,4,6,0,4,0,27,0,0,-7,0,0,0,-10,-9,-4,-4,-11,0,0,0,-108,-120,-121,-108,-116,-119,-148,-142,-148,-110,-109,-100,-110,-117,-118,-118,-116,-119,-138,-151,-146,-136,-137,-133,-140,-140,-145,-123,-124,-106,-108,-117,-137,-100,-91,0,-137,-133,-182,-107,-115,-90,-118,-93,-115,-89,-140,-137,-139,-139,-126,-58,-86,-61,-88,-14,-16,-11,-16,-8,-8,-14,-8,-8,-8,-9,-8,-8]} 1. c4 {[%emt 0:03:36]} e6 {[%emt 0:00:13]} 2. Nc3 {[%emt 0:06:27]} d5 {[%emt 0:00:12]} 3. d4 {[%emt 0:00:03]} Nf6 {[%emt 0:00:28]} 4. cxd5 {[%emt 0:00:47]} exd5 {[%emt 0:00:06]} 5. Bf4 {[%emt 0:00:07]} Bd6 {[%emt 0:01:31]} 6. Bxd6 {[%emt 0:00:08]} Qxd6 {[%emt 0:00:06]} 7. e3 {[%emt 0:00:03]} Bf5 {[%emt 0:05:24]} 8. Nge2 {[%emt 0:07:06]} O-O {[%emt 0:07:44]} 9. Nf4 {[%emt 0:07:06]} Nbd7 {[%emt 0:07:22]} 10. Be2 {[%emt 0:00:08]} Rfe8 {[%emt 0:05:33]} 11. Qb3 {[%emt 0:04:47]} c6 {[%emt 0:05:22]} 12. Rc1 {[%emt 0:08:05]} a5 {[%emt 0:02:02]} 13. Nd3 {[%emt 0:06:13]} h5 {[%emt 0:06:43]} 14. Qd1 {[%emt 0:02:39]} g6 {[%emt 0:11:58]} 15. h3 {[%emt 0:03:17] Wehrt Ng4 ab} Kg7 {[%emt 0:03:43]} 16. Bf3 {[%emt 0:05:29]} h4 {[%emt 0:06:02]} 17. Be2 {[%emt 0:02:20]} a4 {[%emt 0:07:05]} 18. Nxa4 {[%emt 0:03:54]} (18. a3 $11 {hält das Gleichgewicht.}) 18... Bxd3 $17 {[%emt 0:00:27]} 19. Bxd3 {[%emt 0:00:44]} Qb4+ {[%emt 0:00:06]} 20. Nc3 {[%emt 0:00:20][%cal Ba4c3,Bc3e2,Be2f4][%mdl 32]} Rxa2 {[%emt 0:03:18]} 21. b3 {[%emt 0:03:49]} Rb2 {[%emt 0:02:14]} 22. O-O {[%emt 0:00:08]} Rxb3 {[%emt 0:02:19]} 23. Ne2 {[%emt 0:00:22]} Ra8 {[%emt 0:02:35]} 24. Bc2 {[%emt 0:01:33]} Rb2 {[%emt 0:01:41][%cal Bb3b2,Bb2a2,Ba2a4][%mdl 32]} 25. Nf4 {[%emt 0:00:50] Schwarz muss nun Nd3 beachten.} Qd6 {[%emt 0:01:23]} 26. Nd3 {[%emt 0:01:37]} Rba2 {[%emt 0:00:37]} 27. Nf4 {[%emt 0:07:50]} b5 {[%emt 0:05:22]} 28. Bb1 {[%emt 0:03:33]} R2a4 {[%emt 0:00:49]} 29. Bd3 {[%emt 0:02:32]} R8a6 {[%emt 0:03:27]} 30. Qc2 {[%emt 0:00:38]} Ra2 {[%emt 0:00:58]} 31. Qb1 {[%emt 0:01:00]} Nf8 {[%emt 0:03:07]} 32. Rc2 {[%emt 0:07:04]} Qa3 {[%emt 0:02:50]} 33. Rxa2 {[%emt 0:01:40]} Qxa2 {[%emt 0:00:01]} 34. Qc1 {[%emt 0:00:08]} Qa3 {[%emt 0:01:20] ...g5 wäre nun fies.} 35. Qc2 {[%emt 0:00:46]} Qa2 {[%emt 0:00:21]} (35... g5 $142 36. Ne2 Qa2) 36. Qc1 $1 {[%emt 0:00:10]} N8d7 {[%emt 0:01:09]} 37. Rd1 {[%emt 0:01:34]} (37. Qd1 $17) 37... Qa3 {[%emt 0:00:18]} (37... Ne4 $19 38. Bxe4 dxe4) 38. Qb1 {[%emt 0:01:00]} Nf8 {[%emt 0:02:55]} 39. Rc1 {[%emt 0:00:22]} Qd6 {[%emt 0:00:36]} 40. Be2 {[%emt 0:00:29][%cal Bd3e2,Be2f3,Bf3e4][%mdl 32]} Ne4 {[%emt 0:00:30]} 41. Qc2 {[%emt 0:36:35]} ({Vorzuziehen ist} 41. Nd3) 41... Nd7 {[%emt 0:05:27]} 42. Nd3 {[%emt 0:00:00]} Qa3 {[%emt 0:05:28]} 43. Bf3 {[%emt 0:00:00]} Nd6 {[%emt 0:01:31]} (43... Ndf6 $17 44. Kh2 Qd6+ 45. Kg1 Qa3) 44. Rb1 $1 $15 {[%emt 0:00:00] [#]} Nc4 $1 {[%emt 0:05:42]} 45. Nb4 {[%emt 0:00:00] [#]} Rb6 {[%emt 0:00:16]} (45... Ra8 $1 $17 46. Qd1 (46. Nxc6 Qd6 $17) 46... Qc3 47. Nxc6 Nxe3) 46. e4 $11 {[%emt 0:00:00] Die Stellung ist ausgeglichen.} dxe4 {[%emt 0:02:26]} 47. Bxe4 {[%emt 0:00:00]} c5 {[%emt 0:02:09]} 48. dxc5 {[%emt 0:00:00]} Nxc5 {[%emt 0:00:42]} 49. Bd5 {[%emt 0:00:00]} Ne6 {[%emt 0:06:17]} 50. Bxc4 {[%emt 0:00:00]} bxc4 {[%emt 0:00:04]} 51. Qxc4 {[%emt 0:00:00]} g5 {[%emt 0:00:58] Und Weiß wird für den zähen Widerstand belohnt.   Gewichteter Fehlerwert: Weiß=0.10 (sehr präzise) /Schwarz=0.14 (sehr präzise) .  Fehler:       	Weiß=3     	Schwarz=4     Ungenau:       	Weiß=1     	Schwarz=1     OK:         	Weiß=13    	Schwarz=13    Bester:       	Weiß=5     	Schwarz=3     Stark:        	Weiß=2     	Schwarz=1} 1/2-1/2

[Event "Reykjavik Open 2024"]
[Site "Reykjavik"]
[Date "2024.03.16"]
[Round "2.2"]
[White "Lohia, Sohum"]
[Black "Ivanchuk, Vasyl"]
[Result "1/2-1/2"]
[ECO "B13"]
[WhiteElo "2354"]
[BlackElo "2625"]
[Annotator "TA"]
[PlyCount "58"]
[EventDate "2024.03.12"]
[EventCountry "ISL"]
[SourceTitle "playchess.com"]
[Source "ChessBase"]
[SourceQuality "1"]
[TimeControl "40/5400+30:1800+30"]

{[%evp 21,58,39,25,27,29,24,29,22,32,23,29,36,35,30,37,34,41,27,47,49,67,77,76,74,71,83,77,75,74,65,56,51,51,61,67,62,87,60,104]} 1. e4 {[%emt 0:00:06]} c6 {[%emt 0:00:05]} 2. d4 {[%emt 0:00:10]} d5 {[%emt 0:00:05]} 3. exd5 {[%emt 0:02:48]} cxd5 {[%emt 0:00:13]} 4. Bd3 {[%emt 0:00:12]} Nf6 {[%emt 0:02:28]} 5. c3 {[%emt 0:00:42]} Nc6 {[%emt 0:00:09]} 6. Bf4 {[%emt 0:00:11]} Bg4 {[%emt 0:00:04]} 7. Qb3 {[%emt 0:00:15]} Qc8 {[%emt 0:00:15]} 8. Nd2 {[%emt 0:00:23]} e6 {[%emt 0:00:07]} 9. Ngf3 {[%emt 0:00:24]} Be7 {[%emt 0:02:06]} 10. O-O {[%emt 0:00:50]} Bh5 {[%emt 0:00:06]} 11. Rfe1 {[%emt 0:07:12]} O-O {[%emt 0:14:00]} 12. h3 {[%emt 0:11:22]} Bg6 {[%emt 0:01:16]} 13. Bxg6 {[%emt 0:00:51]} hxg6 {[%emt 0:00:09]} 14. Qb5 {[%emt 0:03:21] Weiß hat minimalen Vorteil.} Qd7 {[%emt 0:06:26]} 15. a4 {[%emt 0:06:21]} Bd6 {[%emt 0:01:00]} 16. Bxd6 {[%emt 0:05:17]} Qxd6 {[%emt 0:00:12]} 17. Ne5 {[%emt 0:02:42]} Qc7 {[%emt 0:01:48]} 18. Qe2 {[%emt 0:14:10]} Rac8 {[%emt 0:02:05]} 19. Nxc6 {[%emt 0:12:14]} Qxc6 {[%emt 0:03:49]} 20. h4 {[%emt 0:06:52]} Qa6 {[%emt 0:02:14]} 21. Qxa6 {[%emt 0:05:08]} bxa6 {[%emt 0:00:05]} 22. a5 {[%emt 0:03:11]} Rb8 {[%emt 0:01:19]} 23. b4 {[%emt 0:01:35]} Rfc8 {[%emt 0:00:05]} 24. Rac1 {[%emt 0:01:52]} Ne4 {[%emt 0:01:57]} 25. Nxe4 {[%emt 0:00:31]} dxe4 {[%emt 0:00:04]} 26. Kf1 {[%emt 0:01:36][%cal Of1e2]} ({Bitte nicht} 26. Rxe4 Rxb4 27. h5 gxh5 $17) 26... f5 {[%emt 0:01:21]} 27. Ke2 {[%emt 0:01:45]} Kf7 {[%emt 0:03:12]} 28. f3 {[%emt 0:01:47]} exf3+ {[%emt 0:00:05]} 29. Kxf3 {[%emt 0:00:57]} Rc6 {[%emt 0:00:04] Gewichteter Fehlerwert: Weiß=0.01 (makellos) /Schwarz=0.03 (makellos) .  Ungenau:       	Weiß=1     	Schwarz=1     OK:         	Weiß=12    	Schwarz=7     Bester:       	---       	Schwarz=1} 1/2-1/2

[Event "Reykjavik Open 2024"]
[Site "Reykjavik"]
[Date "2024.03.16"]
[Round "2.3"]
[White "Xu, Xiangyu"]
[Black "Moksh Amit Doshi"]
[Result "1-0"]
[ECO "D02"]
[WhiteElo "2623"]
[BlackElo "2353"]
[Annotator "TA"]
[PlyCount "97"]
[EventDate "2024.03.12"]
[EventCountry "ISL"]
[SourceTitle "playchess.com"]
[Source "ChessBase"]
[SourceQuality "1"]
[TimeControl "40/5400+30:1800+30"]

{[%evp 20,97,19,23,20,12,17,16,13,0,0,0,0,0,0,0,0,0,7,0,0,-14,0,0,0,0,0,0,28,0,0,0,0,0,0,0,0,0,20,25,108,106,127,107,249,248,231,162,233,171,186,172,193,196,427,405,426,416,428,413,550,586,619,615,598,573,1046,1021,2272,2072,5169,5189,5197,5189,29938,12848,29965,29968,29955,5321]} 1. d4 {[%emt 0:01:18]} Nf6 {[%emt 0:00:36]} 2. c4 {[%emt 0:00:13]} e6 {[%emt 0:00:28]} 3. g3 {[%emt 0:00:08]} d5 {[%emt 0:00:16]} 4. Bg2 {[%emt 0:00:07]} Be7 {[%emt 0:01:39]} 5. Nf3 {[%emt 0:02:25]} O-O {[%emt 0:00:09]} 6. b3 {[%emt 0:00:04]} c5 {[%emt 0:06:21]} 7. O-O {[%emt 0:01:09]} cxd4 {[%emt 0:01:50]} 8. Bb2 {[%emt 0:05:41]} Nc6 {[%emt 0:03:55]} 9. Nxd4 {[%emt 0:02:28]} Bd7 {[%emt 0:02:54]} 10. Nd2 {[%emt 0:09:33]} Nxd4 {[%emt 0:04:33]} 11. Bxd4 {[%emt 0:00:14]} Bc6 {[%emt 0:00:08]} 12. Rc1 {[%emt 0:00:06]} Rc8 {[%emt 0:08:30]} 13. e3 {[%emt 0:11:23]} Qa5 {[%emt 0:05:22] The position is equal.} 14. cxd5 {[%emt 0:06:18]} Bxd5 {[%emt 0:04:10]} 15. Nc4 {[%emt 0:00:58]} Bxc4 {[%emt 0:10:24]} 16. bxc4 {[%emt 0:00:08]} b6 {[%emt 0:05:54]} 17. Qb3 {[%emt 0:01:16]} Rfd8 {[%emt 0:00:38]} 18. Rfd1 {[%emt 0:16:49]} h6 {[%emt 0:02:25]} 19. h3 {[%emt 0:02:11]} Nd7 {[%emt 0:03:28]} 20. Rc2 {[%emt 0:00:31]} Bf6 {[%emt 0:06:01]} (20... Nc5 $5 21. Qb1 $8 Na6 $11) 21. Rcd2 {[%emt 0:05:48] Black must now prevent Bxf6.} Nc5 {[%emt 0:01:42]} 22. Qc2 {[%emt 0:02:32]} Qa4 {[%emt 0:04:27] And now ...Qxc2 would win.} 23. Qb2 {[%emt 0:19:53]} e5 {[%emt 0:07:34]} 24. Bxe5 {[%emt 0:00:06] This pair of bishops is nice.} (24. Bxc5 {simplifies} Rxd2 25. Qxd2 Rxc5 26. Bf1) 24... Qxd1+ {[%emt 0:00:46]} 25. Rxd1 {[%emt 0:00:03]} Rxd1+ {[%emt 0:00:09]} 26. Kh2 {[%emt 0:00:03]} Bxe5 {[%emt 0:01:14]} 27. Qxe5 {[%emt 0:00:04]} Rd2 {[%emt 0:01:41][%csl LRa2,LRf2]} 28. Qf5 {[%emt 0:00:07]} Rc7 {[%emt 0:01:22]} 29. g4 {[%emt 0:00:11]} Re7 {[%emt 0:09:04]} (29... Nd7 $1 $11) 30. h4 $16 {[%emt 0:03:44]} g6 {[%emt 0:01:08] [#]} 31. Qf4 {[%emt 0:00:08]} Kh7 {[%emt 0:03:52] A mistake that costs the game.} (31... Na6 $16 {was necessary.} 32. Qxh6 Rxf2) 32. Qf6 $18 {[%emt 0:02:33]} Rdd7 {[%emt 0:00:19]} 33. h5 {[%emt 0:00:05]} Ne4 {[%emt 0:01:24]} (33... Re6 {is a better defense.} 34. hxg6+ fxg6) 34. hxg6+ {[%emt 0:01:36]} fxg6 {[%emt 0:00:08] [#]} 35. Qf4 {[%emt 0:00:04]} Ng5 {[%emt 0:00:56]} 36. Bd5 {[%emt 0:00:17] Prevents Rf7.} b5 $2 {[%emt 0:01:00]} (36... Rd8 {might work better.} 37. Kg2 Kg7 38. Qd4+ Kh7) 37. Qb8 {[%emt 0:00:56][%csl Gd5][%cal Rb8g8]} Ne6 {[%emt 0:01:13]} 38. Qxb5 {[%emt 0:01:18] Threatens to win with Bxe6.} Nc7 {[%emt 0:00:08]} 39. Qc6 {[%emt 0:00:23]} Nxd5 {[%emt 0:00:21]} 40. cxd5 {[%emt 0:00:04][%cal Bc4d5,Bd5d6][%mdl 4128] Endgame. KQ-KRR} Rc7 {[%emt 0:00:17]} 41. Qa4 {[%emt 0:30:08] aiming for d6.} Rf7 {[%emt 0:30:36]} 42. Kg3 {[%emt 0:03:24]} g5 {[%emt 0:00:00]} 43. d6 {[%emt 0:00:00] White wants to mate with Qe4+.} Rcd7 {[%emt 0:00:00]} 44. Qd4 {[%emt 0:00:00] Hoping for e4.} Rf8 {[%emt 0:00:00]} 45. e4 {[%emt 0:00:00][%cal Be3e4,Be4e5,Be5e6][%mdl 32] e5 would now be deadly.} Rfd8 {[%emt 0:00:00]} 46. e5 {[%emt 0:00:00]} Kg8 {[%emt 0:00:00]} 47. Qd5+ {[%emt 0:00:00]} Kf8 {[%emt 0:00:00]} 48. e6 {[%emt 0:00:00]} Rxd6 {[%emt 0:00:00]} 49. Qf5+ {[%emt 0:00:00] Weighted Error Value: White=0.08 (flawless) /Black=0.60.  Mistake:       	---       	Black=4      Inaccurate:     	White=1     	Black=3      OK:         	White=18    	Black=13     Best:        	White=2     	---} (49. Qf3+ $142 Kg8 50. Qf7+ Kh8 51. e7 (51. Qxa7 Rxe6 52. a4 Rf6 $14) 51... Rd3+ 52. Kg2 Rg8 53. e8=Q (53. e8=R Rxe8 54. Qxe8+ Kg7 $18) 53... Rxe8 54. Qxe8+ Kg7 55. Qe5+ Kg8 56. Qe2) 1-0

[Event "Reykjavik Open 2024"]
[Site "Reykjavik"]
[Date "2024.03.16"]
[Round "2.4"]
[White "Thorfinnsson, Bjorn"]
[Black "Moussard, Jules"]
[Result "1/2-1/2"]
[ECO "D03"]
[WhiteElo "2353"]
[BlackElo "2621"]
[Annotator "TA"]
[PlyCount "88"]
[EventDate "2024.03.12"]
[EventCountry "ISL"]
[SourceTitle "playchess.com"]
[Source "ChessBase"]
[SourceQuality "1"]
[TimeControl "40/5400+30:1800+30"]

{[%evp 11,88,0,10,0,10,-8,0,-10,16,0,0,-85,-86,-62,-84,-94,-86,-93,-77,-87,-79,-70,-61,-132,-16,-206,-193,-210,-196,-215,-204,-208,-135,-117,-125,-129,-117,-118,-118,-118,-110,-110,-110,-220,-222,-274,-275,-285,-272,-272,-289,-437,-327,-617,-472,-559,-531,-805,-815,-787,-641,-616,-197,-197,-197,-197,-197,-227,-227,-227,0,-227,-227,-227,0,-227,0,-227,0]} 1. d4 {[%emt 0:05:57]} Nf6 {[%emt 0:01:36]} 2. Nf3 {[%emt 0:00:09]} e6 {[%emt 0:02:28]} 3. Bg5 {[%emt 0:00:14]} d5 {[%emt 0:01:43]} 4. e3 {[%emt 0:00:14]} c5 {[%emt 0:02:04]} 5. c3 {[%emt 0:00:09]} Nbd7 {[%emt 0:04:04]} 6. Nbd2 {[%emt 0:00:56]} Qc7 {[%emt 0:02:40]} 7. Bd3 {[%emt 0:00:30]} h6 {[%emt 0:01:58]} 8. Bh4 {[%emt 0:00:45]} Bd6 {[%emt 0:01:02]} 9. Qe2 {[%emt 0:03:47] Die Stellung ist ausgeglichen.} a6 {[%emt 0:08:30]} 10. a3 {[%emt 0:11:52]} b5 {[%emt 0:09:17]} 11. b4 {[%emt 0:13:12]} (11. e4 $11 {hält das Gleichgewicht.} dxe4 12. Nxe4) 11... c4 $17 {[%emt 0:00:45]} 12. Bc2 {[%emt 0:00:06]} Bb7 {[%emt 0:00:42]} 13. e4 {[%emt 0:06:28]} dxe4 {[%emt 0:03:19]} 14. Nxe4 {[%emt 0:03:05]} Nxe4 {[%emt 0:00:27]} 15. Bxe4 {[%emt 0:00:07]} Nb6 {[%emt 0:00:17]} 16. Nd2 {[%emt 0:04:57]} Bd5 {[%emt 0:10:29][%cal Oa6a5]} (16... Bxh2 $2 17. Bxb7 Ra7 18. Bf3 $18) 17. a4 {[%emt 0:09:01] [#]} Bxe4 {[%emt 0:02:18]} (17... Bxh2 $2 18. a5 Na4 19. Rxa4 (19. Bxd5 Nxc3 20. Qg4 Nxd5 $16) 19... bxa4 20. Bxd5 $18) (17... O-O $1 $17 18. a5 Na4 19. Rxa4 bxa4) 18. Qxe4 $2 {[%emt 0:00:34]} (18. Nxe4 $11 O-O (18... bxa4 19. Qg4 $11) 19. Bg3 Bxg3 20. hxg3) 18... O-O $19 {[%emt 0:00:20]} (18... Bxh2 19. g3 $16) ({Keinesfalls} 18... bxa4 19. Rxa4 O-O 20. Ra2) 19. a5 {[%emt 0:01:59]} Nd5 {[%emt 0:01:05]} 20. Rc1 {[%emt 0:00:28]} Nf4 {[%emt 0:03:02]} ({Lieber nicht} 20... Bxh2 21. g3 $16) 21. O-O {[%emt 0:07:07]} Nd3 {[%emt 0:01:10]} 22. Bg3 {[%emt 0:00:05]} Nxc1 {[%emt 0:05:15]} 23. Rxc1 {[%emt 0:00:03]} Rae8 {[%emt 0:05:20]} 24. Bxd6 {[%emt 0:00:48]} Qxd6 {[%emt 0:00:06]} 25. f4 {[%emt 0:00:05]} f6 {[%emt 0:03:46] ...e5 wäre nun fies.} 26. Nf3 {[%emt 0:00:21]} Qd5 {[%emt 0:00:24]} 27. Qg6 {[%emt 0:10:07] [#]} (27. Qe3 $17) 27... Qf5 $1 {[%emt 0:11:20]} 28. Qxf5 {[%emt 0:01:30]} exf5 {[%emt 0:00:05][%mdl 4096] Endspiel. KRR-KRN} 29. Kf2 {[%emt 0:00:32]} Re4 {[%emt 0:02:27]} 30. Re1 {[%emt 0:02:20]} g5 {[%emt 0:01:59]} ({Finger weg von} 30... Rxf4 31. Re6 $19) 31. g3 {[%emt 0:00:54]} (31. Rxe4 $142 fxe4 32. Ng1) 31... Kf7 {[%emt 0:00:53]} 32. Nd2 $2 {[%emt 0:00:41]} (32. Rxe4 fxe4 33. Nd2) 32... Rxe1 {[%emt 0:00:08]} 33. Kxe1 {[%emt 0:00:04]} gxf4 {[%emt 0:00:22] Und ...Re8+ würde nun gewinnen.} 34. gxf4 {[%emt 0:00:05] KR-KN} Rg8 {[%emt 0:00:05]} 35. Kf2 {[%emt 0:00:05]} Rg4 {[%emt 0:00:31]} 36. h3 {[%emt 0:00:18]} Rg8 {[%emt 0:02:13]} (36... Rxf4+ 37. Kg3 Re4) 37. Nf1 {[%emt 0:02:03]} Ke6 {[%emt 0:01:41]} 38. Ne3 {[%emt 0:02:49]} h5 {[%emt 0:01:54]} 39. h4 {[%emt 0:04:36]} Rg6 {[%emt 0:00:45]} 40. Ng2 {[%emt 0:01:21]} Rg8 $2 {[%emt 0:03:18]} (40... Ke7 $19 {Droht ...Rg4 und aus.} 41. Ne3 Kd7) 41. Kf3 $2 {[%emt 0:30:46]} (41. Ne3 $11) 41... Kd5 {[%emt 0:30:21]} 42. Ne3+ {[%emt 0:00:09]} Ke6 {[%emt 0:00:03]} 43. Ng2 {[%emt 0:00:04]} Kd5 {[%emt 0:00:42]} 44. Ne3+ {[%emt 0:00:05]} Ke6 $2 {[%emt 0:00:02] Gewichteter Fehlerwert: Weiß=0.50/Schwarz=0.43.  Verlustzug:     	Weiß=2     	---        Gewinn verpasst:   	---       	Schwarz=2     Fehler:       	Weiß=5     	Schwarz=1     Ungenau:       	Weiß=1     	Schwarz=2     OK:         	Weiß=12    	Schwarz=11    Bester:       	Weiß=4     	Schwarz=3     Stark:        	---       	Schwarz=1} (44... Kc6 $19 45. Kf2 Re8) 1/2-1/2

[Event "Reykjavik Open 2024"]
[Site "Reykjavik"]
[Date "2024.03.16"]
[Round "2.5"]
[White "Cramling Bellon, Anna"]
[Black "Banerjee, Aryan"]
[Result "1-0"]
[ECO "D31"]
[WhiteElo "2115"]
[BlackElo "1896"]
[Annotator "RC"]
[PlyCount "53"]
[EventDate "2024.03.12"]
[EventCountry "ISL"]
[SourceTitle "playchess.com"]
[Source "ChessBase"]
[SourceQuality "1"]
[TimeControl "40/5400+30:1800+30"]

1. d4 {[%emt 0:01:35]} d5 {[%emt 0:00:28]} 2. c4 {[%emt 0:00:22]} e6 {[%emt 0:00:21]} 3. Nc3 {[%emt 0:00:23]} a6 {[%emt 0:00:06]} 4. cxd5 {[%emt 0:02:03]} exd5 {[%emt 0:00:19]} 5. Nf3 {[%emt 0:00:13]} h6 {[%emt 0:00:14]} 6. Bf4 {[%emt 0:04:59]} Nf6 {[%emt 0:01:08]} 7. e3 {[%emt 0:00:39]} Bd6 {[%emt 0:00:32]} 8. Be5 {[%emt 0:07:40]} c6 {[%emt 0:17:37]} 9. Bd3 {[%emt 0:01:28]} O-O {[%emt 0:04:16]} 10. O-O {[%emt 0:01:11]} Bg4 {[%emt 0:04:59]} 11. h3 {[%emt 0:02:30]} Bh5 {[%emt 0:04:42]} 12. g4 {[%emt 0:07:34]} Bg6 {[%emt 0:01:39]} 13. Bxg6 {[%emt 0:08:58]} fxg6 {[%emt 0:00:17]} 14. Nh4 {[%emt 0:02:02]} Kh7 {[%emt 0:14:42]} 15. Qc2 {[%emt 0:11:37]} Ne4 {[%emt 0:00:27]} 16. Nxg6 {[%emt 0:18:45]} Kxg6 {[%emt 0:01:18]} 17. f3 {[%emt 0:00:04]} Bxe5 {[%emt 0:04:16]} 18. fxe4 {[%emt 0:00:54]} Rxf1+ {[%emt 0:10:37]} 19. Rxf1 {[%emt 0:00:11]} Kh7 {[%emt 0:00:13]} 20. exd5+ {[%emt 0:00:23]} Kh8 {[%emt 0:01:11]} 21. dxe5 {[%emt 0:00:19]} cxd5 {[%emt 0:00:21]} 22. Nxd5 {[%emt 0:02:23]} Nc6 {[%emt 0:00:15]} 23. Nf4 {[%emt 0:10:46]} Qg5 {[%emt 0:04:30]} 24. e6 {[%emt 0:01:55]} h5 {[%emt 0:03:07]} 25. Qf5 {[%emt 0:03:20]} Qd8 {[%emt 0:02:24]} 26. Qxh5+ {[%emt 0:02:34]} Kg8 {[%emt 0:00:07]} 27. Ng6 {[%emt 0:00:05]} 1-0

[Event "Reykjavik Open 2024"]
[Site "Reykjavik"]
[Date "2024.03.16"]
[Round "2.6"]
[White "Stelmaszyk, Nico"]
[Black "Pultinevicius, Paulius"]
[Result "1/2-1/2"]
[ECO "B11"]
[WhiteElo "2347"]
[BlackElo "2575"]
[Annotator "TA"]
[PlyCount "107"]
[EventDate "2024.03.12"]
[EventCountry "ISL"]
[SourceTitle "playchess.com"]
[Source "ChessBase"]
[SourceQuality "1"]
[TimeControl "40/5400+30:1800+30"]

{[%evp 9,107,27,33,37,34,27,22,31,35,19,20,21,22,21,30,14,8,15,15,17,26,16,17,8,9,21,22,0,15,11,21,23,43,12,35,21,37,41,47,57,52,50,51,28,28,33,23,31,32,8,32,0,0,0,0,0,0,0,32,32,32,32,33,0,0,0,0,0,0,0,0,0,0,0,0,0,0,0,0,0,0,0,0,0,0,0,0,0,0,0,0,0,0,0,0,0,0,0,0,0]} 1. e4 {[%emt 0:00:03]} c6 {[%emt 0:00:04]} 2. Nf3 {[%emt 0:00:06]} d5 {[%emt 0:00:09]} 3. Nc3 {[%emt 0:00:05]} dxe4 {[%emt 0:00:16]} 4. Nxe4 {[%emt 0:00:06]} Nf6 {[%emt 0:00:05]} 5. Qe2 {[%emt 0:00:05]} Na6 {[%emt 0:00:17]} 6. d4 {[%emt 0:00:07]} Nxe4 {[%emt 0:00:20]} 7. Qxe4 {[%emt 0:00:08]} Qd5 {[%emt 0:00:04] Prevents Bc4} 8. Qxd5 {[%emt 0:00:16]} cxd5 {[%emt 0:00:06]} 9. Ne5 {[%emt 0:01:33]} Nb8 {[%emt 0:00:06]} 10. Bb5+ {[%emt 0:07:51]} Nd7 {[%emt 0:00:17]} 11. O-O {[%emt 0:00:30]} a6 {[%emt 0:01:19]} 12. Bd3 {[%emt 0:01:01]} Nxe5 {[%emt 0:26:32]} 13. dxe5 {[%emt 0:00:49]} Bd7 {[%emt 0:00:08][%cal Bc8d7,Bd7c6,Bc6d5][%mdl 32]} 14. Be3 {[%emt 0:11:51]} e6 {[%emt 0:00:21] Black is weak on the dark squares} 15. c4 {[%emt 0:05:31]} Bc6 {[%emt 0:07:19]} 16. Rfd1 {[%emt 0:02:14]} Be7 {[%emt 0:19:04][%cal Bf8e7,Be7d8,Bd8c7][%mdl 32]} 17. cxd5 {[%emt 0:09:00]} Bxd5 {[%emt 0:00:05]} 18. f3 {[%emt 0:00:14]} h5 {[%emt 0:07:23]} 19. Rac1 {[%emt 0:08:34]} h4 {[%emt 0:00:54][%cal Oh4h3]} 20. Kf2 {[%emt 0:00:47]} Bd8 {[%emt 0:16:57]} 21. b3 {[%emt 0:04:54]} Bc6 {[%emt 0:02:34]} 22. f4 {[%emt 0:04:32]} Bc7 {[%emt 0:07:49]} 23. Be2 {[%emt 0:02:52]} g5 {[%emt 0:01:01]} 24. Bf3 {[%emt 0:01:17]} gxf4 {[%emt 0:00:23]} 25. Bxf4 {[%emt 0:02:55] [#] Rxc6 is the strong threat.} Bb6+ {[%emt 0:00:37]} 26. Be3 {[%emt 0:00:17]} Bxf3 {[%emt 0:01:39]} 27. gxf3 {[%emt 0:00:26]} Bxe3+ {[%emt 0:00:17]} 28. Kxe3 $11 {[%emt 0:00:06][%mdl 4096] Endgame. KRR-KRR} Rd8 {[%emt 0:00:03]} 29. Rd6 {[%emt 0:12:29]} Rg8 {[%emt 0:02:30]} 30. Rc7 {[%emt 0:10:14]} Rg2 {[%emt 0:00:13]} 31. Rxb7 {[%emt 0:02:07]} Rxa2 {[%emt 0:00:45]} 32. Rxd8+ {[%emt 0:00:59]} Kxd8 {[%emt 0:00:05] KR-KR} 33. h3 {[%emt 0:00:06][%cal Oe3f4]} Rh2 {[%emt 0:00:56]} 34. Rxf7 {[%emt 0:01:34]} Rxh3 {[%emt 0:00:18]} 35. Kf4 {[%emt 0:02:20]} Rh1 {[%emt 0:00:56]} 36. Kg5 {[%emt 0:00:42]} h3 {[%emt 0:01:34] The position is equal.} 37. Rh7 {[%emt 0:01:21]} h2 {[%emt 0:02:42] [#] ( -> ...Rg1+)} 38. Kf6 {[%emt 0:00:57]} Rf1 {[%emt 0:00:06]} 39. Rxh2 {[%emt 0:00:05]} (39. Kxe6 $2 {too greedy.} h1=Q (39... h1=R $2 40. Rd7+ Kc8 41. Rf7 $19) 40. Rxh1 Rxh1 $19) 39... Rxf3+ {[%emt 0:00:04]} 40. Kxe6 {[%emt 0:00:05] b4 would now be deadly.} Rxb3 {[%emt 0:00:07]} 41. Rh8+ {[%emt 0:32:15]} Kc7 {[%emt 0:30:05]} 42. Ke7 {[%emt 0:01:26]} a5 {[%emt 0:00:08]} 43. Ra8 {[%emt 0:00:18]} Ra3 {[%emt 0:01:26]} 44. e6 {[%emt 0:00:33]} a4 {[%emt 0:00:25]} 45. Ke8 {[%emt 0:01:45]} Kb7 {[%emt 0:01:28]} 46. Ra5 {[%emt 0:00:10] aiming for e7.} Re3 {[%emt 0:00:40]} 47. e7 {[%emt 0:00:15][%cal Oe8d7]} a3 {[%emt 0:00:07]} 48. Ra4 {[%emt 0:02:24]} (48. Kf7 $5 Rf3+ $8 49. Kg8 Rg3+ 50. Kf7 Rf3+ 51. Kg8 $11) 48... Rf3 {[%emt 0:00:46]} 49. Kd7 {[%emt 0:01:13] Rb4+ would kill now.} (49. Kd8 $5 Rd3+ $8 50. Ke8 $11) 49... Rd3+ {[%emt 0:00:08]} 50. Ke6 {[%emt 0:00:08] Intending Re4 and mate.} Re3+ {[%emt 0:00:04]} 51. Kd6 {[%emt 0:00:09][%cal Oa4a3] White threatens Rxa3! and mate.} (51. Kf6 $5 Rf3+ $8 52. Kg7 $11) 51... Rd3+ {[%emt 0:00:07]} 52. Kc5 {[%emt 0:00:08]} (52. Ke5 $5 Re3+ $8 53. Kd6 Rd3+ 54. Ke5 Re3+ 55. Kf6 Rf3+ 56. Kg6 $11) 52... Re3 {[%emt 0:00:04]} 53. e8=N {[%emt 0:00:06]} Rxe8 {[%emt 0:00:10]} 54. Rxa3 {[%emt 0:00:05] Weighted Error Value: White=0.04 (flawless) /Black=0.03 (flawless) .  Inaccurate:     	White=3     	Black=1      OK:         	White=17    	Black=27     Best:        	---       	Black=6} 1/2-1/2